Cogmind - Beta 15 @@@ ROGUE MODE // 2025.09.02 @ 22:05:09 Player: GR4C3 Result: Destroyed by D-53 Grenadier with Mini Grenade Launcher Performance ------------- Evolutions (0) 0 Regions Visited (2) 400 Robots Destroyed (7) 35 Value Destroyed (135) 135 Prototype IDs (2) 40 Alien Tech Used (0) 0 Bonus (0) 0 TOTAL SCORE: 610 Bonus ------- None Cogmind --------- Core Integrity 0/250 Matter 294/300 Energy 100/100 System Corruption 0% Temperature Cool (0) Movement Walking (120) Location -10/Mines Parts ------- > --- POWER (1) -------- (None) > --- PROPULSION (2) --- Aluminum Leg > --- UTILITY (2) ------ Core Shielding > --- WEAPON (2) ------- (None) > --- INVENTORY (5) ---- Ion Engine EM Pulse Gun Medium Laser Light Assault Rifle Peak State ------------ > --- POWER ------------ Ion Engine > --- PROPULSION ------- Aluminum Leg Aluminum Leg > --- UTILITY ---------- Medium Matter Pod Improved Terrain Scanner > --- WEAPON ----------- Particle Gun Light Assault Rifle > --- INVENTORY -------- Ion Engine EM Pulse Gun Medium Laser Light Assault Rifle Grenade Launcher [Rating: 10] Favorites ----------- Power Ion Engine Engine Ion Engine Propulsion Aluminum Leg Leg Aluminum Leg Utility Improved Terrain Scanner Device Improved Terrain Scanner Storage Small Storage Unit Protection Core Shielding Weapon Light Assault Rifle Energy Gun Particle Gun Ballistic Gun Light Assault Rifle Launcher Grenade Launcher Build | -11 -10 -10 ------- Run | Yrd Mat Min Slots Evolved . | . . . Power . | . . . Propulsion . | . . . Utility . | . . . Weapon . | . . . Parts Attached 14 | 6 7 1 Power 2 | 1 1 . Engine 2 | 1 1 . Core . | . . . Reactor . | . . . Propulsion 2 | 2 . . Treads . | . . . Leg 2 | 2 . . Wheel . | . . . Hover . | . . . Flight . | . . . Utility 5 | 2 2 1 Device 1 | 1 . . Storage 3 | 1 2 . Processor . | . . . Hackware . | . . . Protection 1 | . . 1 Artifact . | . . . Weapon 5 | 1 4 . Energy Gun 2 | . 2 . Energy Cannon . | . . . Ballistic Gun 2 | 1 1 . Ballistic Cannon . | . . . Launcher 1 | . 1 . Special Weapon . | . . . Impact Weapon . | . . . Slashing Weapon . | . . . Piercing Weapon . | . . . Special Melee Weapon . | . . . Unidentified Prototypes . | . . . Parts Lost 5 | . . 5 Power 1 | . . 1 Propulsion 1 | . . 1 Utility 1 | . . 1 Weapon 2 | . . 2 Highest Loss Streak 5 | . . 5 To Critical Strikes . | . . . Average Backups 3 | 2 3 5 Power . | . 1 1 Propulsion . | . . . Utility . | . . . Weapon 2 | 1 2 3 Tool/Special . | . . . Unused Backups 1 | . . 1 Power . | . . . Propulsion . | . . . Utility . | . . . Weapon 1 | . . 1 Tool/Special . | . . . Average Slot Usage (%) 93 | . 95 83 Engine 13 | . 14 10 Leg 27 | . 28 24 Device 13 | . 14 9 Storage 11 | . 11 10 Energy Gun 6 | . 6 7 Ballistic Gun 18 | . 18 14 Peak Build Rating 10 | 8 10 10 Average Rating 8 | 4 9 7 On Entrance 6 | . 8 10 Naked Turns . | . . . Heaviest Build 20 | 12 20 20 Greatest Support 20 | 20 20 20 Greatest Overweight (x) 1 | . . 1 Average Overweight (x) . | . . . Largest Inventory Capacity 10 | 8 10 10 Average Capacity 6 | 6 6 8 Most Carried 6 | 4 5 6 Average Carried 3 | 2 3 5 Final Capacity 10 | 8 10 5 Final Carried 5 | 3 5 4 Class Distribution -------------------- 100% | Mutant Dominant Class ---------------- Mutant | -10/Materials Mutant | -10/Mines Resources | -11 -10 -10 ----------- Run | Yrd Mat Min Matter Collected 398 | 261 129 8 Remotely . | . . . Salvage Created 190 | 17 173 . Parts 12 | 2 10 . Haulers Intercepted . | . . . Recyclers Shooed 1 | . 1 . Parts Field Recycled . | . . . Retrieved Matter . | . . . Parts Self-Destructed . | . . . Prevented . | . . . Kills | -11 -10 -10 ------- Run | Yrd Mat Min Combat Hostiles Destroyed 4 | . 4 . Guns 2 | . 2 . AOE 2 | . 2 . Classes Destroyed 5 | 1 4 . Worker 1 | . 1 . Tunneler 1 | 1 . . Recycler 1 | . 1 . Swarmer 2 | . 2 . Grunt 2 | . 2 . Best Kill Streak 3 | 1 3 . Combat Bots Only 2 | . 2 . Max Kills in Single Turn 1 | 1 1 . Gunslinging . | . . . Exploded 1 | . 1 . Melee . | . . . Uniques/NPCs Destroyed . | . . . Combat | -11 -10 -10 -------- Run | Yrd Mat Min Hostile Shots Fired 35 | . 20 15 Missed 12 | . 9 3 Hits 23 | . 11 12 Projectile 23 | . 11 12 AOE 15 | . . 15 Damage Taken 711 | . 112 599 Core 262 | . 55 207 Absorbed by Shields . | . . . Redirected to Shielding 29 | . . 29 Core Remaining (%) 100 | 100 . . Volleys Fired 16 | 1 14 1 Largest 2 | 1 2 2 Hottest 60 | 20 60 50 Shots Fired 31 | 1 28 2 Gun 27 | 1 25 1 Cannon . | . . . Launcher 4 | . 3 1 Special . | . . . Kinetic 16 | 1 14 1 Thermal . | . . . Explosive 4 | . 3 1 Electromagnetic 11 | . 11 . Robot Hit Streak 3 | 1 3 1 Robot Miss Streak 5 | . 5 1 Penetration Max . | . . . Secondary Targets 1 | . 1 . Max Gunslinging Chain 1 | . 1 . Shots Hit Robots 16 | 1 14 1 Core Hits 15 | 1 13 1 Critical Kills . | . . . Critical Parts Destroyed . | . . . Critical Strikes . | . . . Melee Attacks . | . . . Impact . | . . . Slashing . | . . . Piercing . | . . . Sneak Attacks . | . . . Combat Hostiles . | . . . Follow-up Attacks . | . . . Damage Inflicted 464 | 10 430 24 Guns 150 | 10 134 6 Cannons . | . . . Explosions 309 | . 291 18 Melee . | . . . Ramming 5 | . 5 . Kinetic 47 | 10 31 6 Thermal 110 | . 110 . Explosive 199 | . 181 18 Electromagnetic 103 | . 103 . Impact . | . . . Slashing . | . . . Piercing . | . . . Highest Corruption . | . . . Average Corruption . | . . . Corruption Purged . | . . . Corruption Blocked . | . . . Overload Shots . | . . . Overflow Damage 6 | . 6 . Projectiles . | . . . Explosions 6 | . 6 . Melee . | . . . Knockbacks . | . . . Impact . | . . . Kinetic . | . . . Secondary . | . . . Self-Inflicted Damage 6 | . 6 . Shots 1 | . 1 . Rammed . | . . . Targets Rammed 1 | . 1 . Kicked 1 | . 1 . Crushed . | . . . Highest Temperature 40 | . 40 10 Average Temperature 21 | . 22 7 Received Heat Transfer 27 | . 27 . Siege Activations . | . . . Martial Activations . | . . . Shielding Activations . | . . . Robots Disrupted . | . . . Combat Hostiles . | . . . Robots Corrupted . | . . . Combat Hostiles . | . . . Parts Fried 1 | . 1 . Impact Corruptions . | . . . Robots Melted . | . . . Combat Hostiles . | . . . Parts Melted . | . . . Heat Transferred 150 | . 150 . Parts Sabotaged . | . . . Parts Stolen . | . . . Parts Stripped . | . . . Power Chain Reactions 2 | . 2 . Alert | -11 -10 -10 ------- Run | Yrd Mat Min Maximum Alert Level . | . . . Low Security (%) 100 | 100 100 100 Level 1 . | . . . Level 2 . | . . . Level 3 . | . . . Level 4 . | . . . Level 5 . | . . . High Security . | . . . Max Security . | . . . Peak Influence 68 | 5 68 19 Initial 1 | . . 1 Average 16 | . 21 1 Influence Increases 182 | 5 158 19 Destroy 0b10 Robot/C 80 | . 80 . Destroy 0b10 Robot/NC 15 | 5 10 . Destroy Leader 20 | . 20 . Disable Machine 30 | . 15 15 Destroy Structure 22 | . 18 4 Partial Spotted 15 | . 15 . Influence Decreases 182 | 5 152 25 Entered New Map 5 | . . 5 Time Decay 158 | 5 152 1 Lost Part 19 | . . 19 Squads Dispatched . | . . . Investigation . | . . . Extermination . | . . . Reinforcement . | . . . Assault . | . . . Garrison . | . . . Intercept . | . . . Searches Triggered . | . . . Construction Impeded . | . . . Haulers Reinforced . | . . . Active Scanning Responses . | . . . Cargo Convoy Interrupts . | . . . Stealth | -11 -10 -10 --------- Run | Yrd Mat Min Distress Signals . | . . . Communications Jammed . | . . . Distress Signals . | . . . Times Spotted 10 | . 8 2 Peak Tracking Total 3 | . 3 2 Tactical Retreats . | . . . Traps | -11 -10 -10 ------- Run | Yrd Mat Min Traps Triggered . | . . . Indirectly . | . . . Trap Hack Attempts . | . . . Triggered . | . . . Disarmed . | . . . Reprogrammed . | . . . Reused . | . . . Traps Extracted . | . . . Installed . | . . . Triggered . | . . . Machines | -11 -10 -10 ---------- Run | Yrd Mat Min Machines Disabled 3 | . 2 1 Max in Single Turn 1 | . 1 1 Machines Repaired . | . . . Machines Dismantled . | . . . Machines Sabotaged . | . . . Overloaded Fab Kills . | . . . Hacking | -11 -10 -10 --------- Run | Yrd Mat Min Machines Accessed 1 | . 1 . Terminals 1 | . 1 . Fabricators . | . . . Repair Stations . | . . . Recycling Units . | . . . Scanalyzers . | . . . Garrison Access . | . . . Total Hacks 1 | . 1 . Successful 1 | . 1 . Failed . | . . . Catastrophic . | . . . Database Lockouts . | . . . Manual . | . . . Terminals 1 | . 1 . Fabricators . | . . . Repair Stations . | . . . Recycling Units . | . . . Scanalyzers . | . . . Garrison Access . | . . . Terminal Hacks 1 | . 1 . Prototype ID Bank 1 | . 1 . Fabricator Hacks . | . . . Repair Station Hacks . | . . . Recycling Unit Hacks . | . . . Scanalyzer . | . . . Garrison Access Hacks . | . . . Unauthorized Hacks . | . . . Terminals . | . . . Fabricators . | . . . Repair Stations . | . . . Recycling Units . | . . . Scanalyzers . | . . . Garrison Access . | . . . Data Cores Recovered . | . . . Used . | . . . Hacking Detections . | . . . Full Trace Events . | . . . Feedback Events . | . . . Feedback Blocked . | . . . Robot Schematics Acquired . | . . . Robots Built . | . . . Authchips . | . . . Time . | . . . Total Robot Build Rating . | . . . Part Schematics Acquired . | . . . Parts Built . | . . . Authchips . | . . . Time . | . . . Total Part Build Rating . | . . . Parts Repaired . | . . . Time . | . . . Parts Recycled . | . . . Recycled Matter . | . . . Retrieved Matter . | . . . Retrieved Components . | . . . Parts Scanalyzed . | . . . Part Schematics Acquired . | . . . Parts Damaged . | . . . Bothacking | -11 -10 -10 ------------ Run | Yrd Mat Min Used RIF Installer . | . . . Robots Hacked . | . . . Non-combat . | . . . Combat . | . . . Robot Hacks Applied . | . . . Relay Couplers Released . | . . . Fabnet Peak Effective % . | . . . Robots Rewired . | . . . Allies Hacked . | . . . Hacks Repelled . | . . . Allies | -11 -10 -10 -------- Run | Yrd Mat Min Total Allies . | . . . Largest Group . | . . . Highest-Rated Group . | . . . Highest-Rated Ally . | . . . Total Orders . | . . . Ally Attacks . | . . . Total Damage . | . . . Kills . | . . . Allies Corrupted . | . . . Allies Melted . | . . . Intel | -11 -10 -10 ------- Run | Yrd Mat Min Active Infowar (turns) 553 | 30 471 52 Terrain 553 | 30 471 52 Robot Analysis Total . | . . . Derelict Logs Recovered . | . . . Drone Launches . | . . . Drone Recoveries . | . . . Exploration | -11 -10 -10 ------------- Run | Yrd Mat Min Turns Passed 635 | 79 471 85 Spaces Moved 467 | 58 345 64 Core 10 | 10 . . Treads . | . . . Legs 457 | 48 345 64 Wheels . | . . . Hover . | . . . Flight . | . . . Fastest Speed 50 | 50 120 120 Average Speed 118 | 107 120 121 Slowest Speed 190 | 120 120 190 Overloaded Moves . | . . . Propulsion Burnouts . | . . . Robots Hopped . | . . . Potential Cave-ins . | . . . Cave-ins Triggered . | . . . Exploration Rate (%) 25 | 4 49 23 Regions Visited 2 Branch Regions 1 Pre-discovered Areas . | . . . Known Exits Taken . | . . . Unknown Exits Taken 2 | 1 1 . Scrap Searched 1 | . . 1 Spaces Dug . | . . . Terrain Destroyed 21 | . 17 4 Melee . | . . . Projectile . | . . . AOE 21 | . 17 4 Terrain Rammed . | . . . Walls Destroyed . | . . . Machines Disabled . | . . . Actions | -11 -10 -10 --------- Run | Yrd Mat Min Total 517 | 73 374 70 Wait . | . . . Move 465 | 57 344 64 Hop . | . . . Pick Up 14 | 9 4 1 Fast Attach 1 | . 1 . Attach 9 | 6 2 1 Detach . | . . . Swap 7 | . 6 1 Drop 4 | . 2 2 Fire 16 | 1 14 1 Melee . | . . . Ram . | . . . Kick 1 | . 1 . Crush . | . . . Escape Stasis . | . . . Rewire . | . . . Trap . | . . . Miscellaneous . | . . . Route ------- -11/Scrapyard -10/Materials (discovered 2 exits: [*Min x2]) -10/Mines History --------- Turn | Location | Event 3 | -11/Scrapyard | Discovered new exit (range 15) 80 | -11/Scrapyard | Entered Materials 318 | -10/Materials | Build established: Mutant 323 | -10/Materials | Discovered new exit (range 9) 340 | -10/Materials | Discovered new exit (range 16) 551 | -10/Materials | Entered Mines 577 | -10/Mines | Assembled infested the area 613 | -10/Mines | Core integrity fell below 50% 632 | -10/Mines | Core integrity fell below 20% 636 | -10/Mines | Destroyed by D-53 Grenadier with Mini Grenade Launcher Last Messages --------------- 00556_ Found 31 Matter. 00557_ Acquired 8 matter. 00559_ Acquired Core Shielding. 00577_ ALERT: Infestation in the mines, dispatching Demolisher response squad. 00596_ C-30 ARC bursts open, deploying its payload. 00596_ D-53 Grenadier unfolds itself. 00603_ The unstable cave ceiling collapses. 00603_ Imp. Terrain Scanner destroyed. 00608_ Grenade Launcher destroyed. 00611_ Aluminum Leg destroyed. 00612_ The unstable cave ceiling collapses. 00614_ Ion Engine destroyed. 00614_ Dropped Med. Storage Unit. 00614_ Dropped Particle Gun. 00618_ The unstable cave ceiling collapses. 00630_ Lgt. Assault Rifle destroyed. 00634_ The unstable cave ceiling collapses. 00635_ K-01 Serf destroyed. Map ----- +----------------------------------------------------+ | ???????#??????????# # ##??????? | | ??????????????#???# #??????? | | ?????????????????## #??????? | | ????????????###### ##?????? | | ???????????## # #?????? | | ??????????## # ##?????? | | ??????????# #?????#? | | ??????????# # ####???? | | ??????????# ![ #???? | | ??????????## ## #???? | | ???????????# ###? #???? | | ??????????## #???? #???? | | ??????????# # # ###?????#???? | | ??????????# ######???????????? | | ??????????# #?????????????????? | | ??????????# d #?????????????????? | | ?????????## d #?????????????????? | | ?????????# g ###???????????????? | | ?????????# #???????????????? | | ????????## #???????????????? | | ????????# ##???????????????? | | ????????## #???????????????? | | ???????## # #???????????????? | | ??###### ##???????????????? | | ??# !% ###????????????????? | | ?# @ #?????????????????? | | ?# #????????????????? | | ?## #????????????????? | | ??## k ##????????????????? | | ???# ##?????????????????? | | ???# ##??????????????????? | | ??? #???????????????????? | | ??# $ #???????????????????? | | ??## #???????????????????? | | ???# ##???????????????????? | | ???# ###????????????????????? | | ??? #???????????????????????? | | ??? #????????????????????????? | | ??## #?????????????????????????? | | ????? #??????????????????????????? | | ?????????????????????????????????? | | ?????????????????????????????????? | | ?????????????????????????????????? | | ?????????????????????????????????? | | ?????????????????????????????????? | | ?????????????????????????????????? | | ?????????????????????????????????? | | ?????????????????????????????????? | | ?????????????????????????????????? | | ?????????????????????????????????? | +----------------------------------------------------+ Best States ------------- Heat Dissipation 25 Energy Generation 10 Energy Capacity 250 Matter Stores 347 Matter Capacity 400 Sight Range 16 Terrain Scan Range 16 Terrain Scan Density 10 Core Shielding 20 Evasion (%) 55 Item Schematics ----------------- None Robot Schematics ------------------ None Fabricated ------------ Nothing Repaired ---------- Nothing Alien Tech Used ----------------- None Achievements -------------- None Challenges ------------ None Game ------ Seed PulseStormBarrier Manual? 0 Play Time 00:14:05 Cumulative 84.6 hours Start 2025.09.02 @ 21:48:55 End 2025.09.02 @ 22:05:09 Sessions 1 Manual Loads 0 Difficulty Rogue Special Mode None Game No. 72 Rogue 58 Adventurer 14 Explorer 0 Win Type - Total 0 Types 0/0/0/0/0/0/0/0/0/0 Lore% 29 Gallery% 36 Achievement% 29 Wizard Run 0 Options --------- Layout 1 ASCII 0 Keyboard 0 Movement Mouse Keybinds 0 Fullscreen 0 Font 18/SmallcapsGlow Map View 50x35 Zoom Use 0% Tactical HUD 1 Map Filters NONE Filters NONE Steam 1 RUN: 4b841b24-a85f-410a-8751-0dfad6d58e8e